[Event "Early-Titled-Tuesday-Blitz-February-20-2024"]
[Site "Chess.com"]
[Date "2024.02.20"]
[Round "3"]
[White "Lennis93"]
[Black "alexrustemov"]
[Result "1/2-1/2"]
[WhiteElo "2703"]
[BlackElo "2904"]
[TimeControl "180+1"]
[EndTime "8:30:14 PST"]
[Termination "Game drawn by repetition"]

1. d4 {[%clk 0:03:00.9]} 1... d5 {[%clk 0:02:59.9]} 2. c4 {[%clk 0:03:00.5]}
2... c6 {[%clk 0:03:00.2]} 3. Nf3 {[%clk 0:03:00.4]} 3... Nf6 {[%clk 0:03:00.6]}
4. Qc2 {[%clk 0:03:00.6]} 4... dxc4 {[%clk 0:03:00.1]} 5. e4 {[%clk 0:03:00.1]}
5... b5 {[%clk 0:02:58.5]} 6. b3 {[%clk 0:03:00.2]} 6... cxb3 {[%clk 0:02:58.1]}
7. axb3 {[%clk 0:03:01.1]} 7... e6 {[%clk 0:02:57.3]} 8. Bd3 {[%clk 0:02:59.7]}
8... Be7 {[%clk 0:02:50]} 9. O-O {[%clk 0:02:58.8]} 9... h6 {[%clk 0:02:42.9]}
10. Rd1 {[%clk 0:02:58]} 10... Bb7 {[%clk 0:02:37.2]} 11. Nc3 {[%clk 0:02:55.3]}
11... Na6 {[%clk 0:02:27.8]} 12. Qe2 {[%clk 0:02:39.5]} 12... Nb4 {[%clk
0:02:26.6]} 13. Bb1 {[%clk 0:02:27.5]} 13... a6 {[%clk 0:02:25.5]} 14. Bf4
{[%clk 0:02:18.2]} 14... Qb6 {[%clk 0:02:24.7]} 15. h3 {[%clk 0:02:15]} 15...
Rd8 {[%clk 0:02:21.4]} 16. Be3 {[%clk 0:02:07.8]} 16... c5 {[%clk 0:02:18.2]}
17. e5 {[%clk 0:02:03.9]} 17... Nfd5 {[%clk 0:02:17.1]} 18. Nxd5 {[%clk
0:01:54.1]} 18... Nxd5 {[%clk 0:02:16]} 19. Bd2 {[%clk 0:01:54.6]} 19... cxd4
{[%clk 0:02:13.2]} 20. Ba5 {[%clk 0:01:50.3]} 20... Nc3 {[%clk 0:02:12.9]} 21.
Qd3 {[%clk 0:01:25]} 21... Qc5 {[%clk 0:02:04]} 22. Bxd8 {[%clk 0:01:17.8]}
22... Bxd8 {[%clk 0:02:04.1]} 23. Re1 {[%clk 0:01:10.8]} 23... Bb6 {[%clk
0:01:59.6]} 24. Nd2 {[%clk 0:00:59.4]} 24... a5 {[%clk 0:01:51.3]} 25. Qg3
{[%clk 0:00:58.8]} 25... Kf8 {[%clk 0:01:41.7]} 26. Ne4 {[%clk 0:00:54.4]} 26...
Bxe4 {[%clk 0:01:17.7]} 27. Bxe4 {[%clk 0:00:55.3]} 27... Bc7 {[%clk 0:01:13.9]}
28. Bd3 {[%clk 0:00:54.3]} 28... g5 {[%clk 0:01:06.3]} 29. f4 {[%clk 0:00:46.1]}
29... gxf4 {[%clk 0:00:53]} 30. Qxf4 {[%clk 0:00:46]} 30... f5 {[%clk
0:00:53.3]} 31. Qh4 {[%clk 0:00:36.4]} 31... Qe7 {[%clk 0:00:50.9]} 32. Qxd4
{[%clk 0:00:34.5]} 32... Nd5 {[%clk 0:00:46.3]} 33. Kh1 {[%clk 0:00:25.3]} 33...
b4 {[%clk 0:00:40.3]} 34. Bxf5 {[%clk 0:00:25.1]} 34... Bb6 {[%clk 0:00:36.4]}
35. Qd3 {[%clk 0:00:24.1]} 35... Kg7 {[%clk 0:00:29.5]} 36. Qg3+ {[%clk
0:00:23.5]} 36... Qg5 {[%clk 0:00:28.8]} 37. Qxg5+ {[%clk 0:00:22.4]} 37... hxg5
{[%clk 0:00:29.7]} 38. Bxe6 {[%clk 0:00:22.9]} 38... Ne3 {[%clk 0:00:27.4]} 39.
Bd7 {[%clk 0:00:20.6]} 39... Nc2 {[%clk 0:00:22.6]} 40. e6 {[%clk 0:00:19.3]}
40... Nxa1 {[%clk 0:00:22.4]} 41. Rxa1 {[%clk 0:00:20]} 41... Kf6 {[%clk
0:00:17.7]} 42. Rf1+ {[%clk 0:00:19.6]} 42... Ke7 {[%clk 0:00:18.1]} 43. Rf7+
{[%clk 0:00:19.4]} 43... Kd6 {[%clk 0:00:18.4]} 44. Rg7 {[%clk 0:00:18.5]} 44...
Bd8 {[%clk 0:00:17.9]} 45. Rg6 {[%clk 0:00:14.2]} 45... Be7 {[%clk 0:00:17.8]}
46. Ba4 {[%clk 0:00:13.7]} 46... Rh4 {[%clk 0:00:17.2]} 47. Kh2 {[%clk
0:00:13.7]} 47... Rd4 {[%clk 0:00:16.9]} 48. Kg3 {[%clk 0:00:13.8]} 48... Rd2
{[%clk 0:00:17.2]} 49. Kf3 {[%clk 0:00:13.8]} 49... Ra2 {[%clk 0:00:17.3]} 50.
g3 {[%clk 0:00:09.9]} 50... Rxa4 {[%clk 0:00:17.3]} 51. bxa4 {[%clk 0:00:10.8]}
51... b3 {[%clk 0:00:17.9]} 52. Rg8 {[%clk 0:00:11]} 52... Kc7 {[%clk
0:00:16.9]} 53. Rg7 {[%clk 0:00:11]} 53... b2 {[%clk 0:00:16.8]} 54. Rxe7+
{[%clk 0:00:11.3]} 54... Kc6 {[%clk 0:00:17.5]} 55. Kg4 {[%clk 0:00:07.6]} 55...
b1=Q {[%clk 0:00:17.6]} 56. Kxg5 {[%clk 0:00:07.7]} 56... Kd6 {[%clk 0:00:16.7]}
57. Re8 {[%clk 0:00:06.6]} 57... Qb3 {[%clk 0:00:14]} 58. g4 {[%clk 0:00:04.1]}
58... Qxa4 {[%clk 0:00:14.2]} 59. Rf8 {[%clk 0:00:03.9]} 59... Kxe6 {[%clk
0:00:13.6]} 60. h4 {[%clk 0:00:04.7]} 60... Qb5+ {[%clk 0:00:11.2]} 61. Rf5
{[%clk 0:00:04.3]} 61... Qb1 {[%clk 0:00:10.6]} 62. Rxa5 {[%clk 0:00:03.4]}
62... Qc1+ {[%clk 0:00:09.9]} 63. Kh5 {[%clk 0:00:03.7]} 63... Qc8 {[%clk
0:00:08.4]} 64. Rf5 {[%clk 0:00:03.9]} 64... Qh8+ {[%clk 0:00:07.8]} 65. Kg5
{[%clk 0:00:04.8]} 65... Qg8+ {[%clk 0:00:08.2]} 66. Kf4 {[%clk 0:00:04.6]}
66... Qg7 {[%clk 0:00:08]} 67. h5 {[%clk 0:00:04.4]} 67... Qd4+ {[%clk
0:00:08.2]} 68. Kg5 {[%clk 0:00:04.8]} 68... Qg7+ {[%clk 0:00:08.5]} 69. Kh4
{[%clk 0:00:04.7]} 69... Qd4 {[%clk 0:00:08.6]} 70. h6 {[%clk 0:00:04.5]} 70...
Qh8 {[%clk 0:00:08.5]} 71. Kg5 {[%clk 0:00:04.7]} 71... Qg8+ {[%clk 0:00:08.6]}
72. Kh5 {[%clk 0:00:05.2]} 72... Qe8+ {[%clk 0:00:08.6]} 73. Kg5 {[%clk
0:00:05.2]} 73... Qd8+ {[%clk 0:00:08.4]} 74. Kg6 {[%clk 0:00:05.6]} 74... Qg8+
{[%clk 0:00:08.4]} 75. Kh5 {[%clk 0:00:06.1]} 75... Qe8+ {[%clk 0:00:08.7]} 76.
Kg5 {[%clk 0:00:06.1]} 76... Qd8+ {[%clk 0:00:09.1]} 77. Kg6 {[%clk 0:00:06.3]}
77... Qg8+ {[%clk 0:00:08.6]} 78. Kh5 {[%clk 0:00:06.6]} 1/2-1/2

[Event "Early-Titled-Tuesday-Blitz-February-20-2024"]
[Site "Chess.com"]
[Date "2024.02.20"]
[Round "3"]
[White "profedechess93"]
[Black "RCone"]
[Result "1-0"]
[WhiteElo "2654"]
[BlackElo "2439"]
[TimeControl "180+1"]
[EndTime "8:30:16 PST"]
[Termination "profedechess93 won on time"]

1. e4 {[%clk 0:03:00.9]} 1... d6 {[%clk 0:02:57.7]} 2. d4 {[%clk 0:03:00.6]}
2... Nf6 {[%clk 0:02:57.7]} 3. Nc3 {[%clk 0:03:01.1]} 3... g6 {[%clk 0:02:58.4]}
4. Bg5 {[%clk 0:02:58.1]} 4... Bg7 {[%clk 0:02:57.9]} 5. e5 {[%clk 0:02:58.2]}
5... Nfd7 {[%clk 0:02:58.5]} 6. exd6 {[%clk 0:02:54.3]} 6... cxd6 {[%clk
0:02:59.4]} 7. Qd2 {[%clk 0:02:54.8]} 7... Nf6 {[%clk 0:02:58.7]} 8. Bh6 {[%clk
0:02:50.9]} 8... O-O {[%clk 0:02:58.1]} 9. O-O-O {[%clk 0:02:48.9]} 9... Nc6
{[%clk 0:02:56]} 10. h4 {[%clk 0:02:44.4]} 10... Bxh6 {[%clk 0:02:55.5]} 11.
Qxh6 {[%clk 0:02:43.9]} 11... Ng4 {[%clk 0:02:56.2]} 12. Qd2 {[%clk 0:02:40.3]}
12... e5 {[%clk 0:02:54.7]} 13. d5 {[%clk 0:02:15.3]} 13... Nd4 {[%clk
0:02:39.8]} 14. f3 {[%clk 0:01:47.4]} 14... Nf6 {[%clk 0:02:39.3]} 15. Nge2
{[%clk 0:01:43.2]} 15... Nxe2+ {[%clk 0:02:28]} 16. Bxe2 {[%clk 0:01:44.1]}
16... Nh5 {[%clk 0:02:18.3]} 17. g4 {[%clk 0:01:29.4]} 17... Nf4 {[%clk
0:02:17.2]} 18. Ne4 {[%clk 0:01:29.9]} 18... h6 {[%clk 0:02:14.5]} 19. Kb1
{[%clk 0:01:25]} 19... Qc7 {[%clk 0:02:12.9]} 20. c4 {[%clk 0:01:14.9]} 20... b6
{[%clk 0:02:13]} 21. Rc1 {[%clk 0:01:13.7]} 21... Bb7 {[%clk 0:02:12.8]} 22. Bd1
{[%clk 0:01:13.8]} 22... Rac8 {[%clk 0:02:11.6]} 23. Bb3 {[%clk 0:01:14.2]}
23... a6 {[%clk 0:02:11.5]} 24. Ka1 {[%clk 0:00:58.5]} 24... Kg7 {[%clk
0:02:12]} 25. h5 {[%clk 0:00:55.5]} 25... Rh8 {[%clk 0:02:08.3]} 26. hxg6 {[%clk
0:00:55.1]} 26... fxg6 {[%clk 0:02:08.4]} 27. g5 {[%clk 0:00:51.7]} 27... hxg5
{[%clk 0:02:07.2]} 28. Nxg5 {[%clk 0:00:51.2]} 28... Qe7 {[%clk 0:02:04.3]} 29.
Rhg1 {[%clk 0:00:49.3]} 29... Rh5 {[%clk 0:01:56.4]} 30. Ne6+ {[%clk 0:00:49.1]}
30... Nxe6 {[%clk 0:01:55.5]} 31. dxe6 {[%clk 0:00:50]} 31... Qxe6 {[%clk
0:01:38.2]} 32. c5 {[%clk 0:00:48.1]} 32... d5 {[%clk 0:01:38.8]} 33. cxb6
{[%clk 0:00:44.2]} 33... Rhh8 {[%clk 0:01:28.4]} 34. Rce1 {[%clk 0:00:37.2]}
34... Qd6 {[%clk 0:01:12.8]} 35. Qg5 {[%clk 0:00:32.4]} 35... Rce8 {[%clk
0:01:11.8]} 36. Bc2 {[%clk 0:00:31.2]} 36... Rh6 {[%clk 0:01:08.9]} 37. Rh1
{[%clk 0:00:26.5]} 37... Rxh1 {[%clk 0:01:01.5]} 38. Rxh1 {[%clk 0:00:26]} 38...
Rh8 {[%clk 0:00:55.9]} 39. Rxh8 {[%clk 0:00:20.7]} 39... Kxh8 {[%clk 0:00:56.8]}
40. Qh6+ {[%clk 0:00:21.4]} 40... Kg8 {[%clk 0:00:57]} 41. Qxg6+ {[%clk
0:00:11.8]} 41... Qxg6 {[%clk 0:00:57]} 42. Bxg6 {[%clk 0:00:12.7]} 42... Kg7
{[%clk 0:00:54.9]} 43. Bf5 {[%clk 0:00:13.2]} 43... Kf6 {[%clk 0:00:55.7]} 44.
Bg4 {[%clk 0:00:13]} 44... Kg5 {[%clk 0:00:56.2]} 45. Kb1 {[%clk 0:00:12.9]}
45... e4 {[%clk 0:00:56.7]} 46. Kc1 {[%clk 0:00:11.8]} 46... Kf4 {[%clk
0:00:56.9]} 47. Kd2 {[%clk 0:00:08.5]} 47... exf3 {[%clk 0:00:55.3]} 48. Bh3
{[%clk 0:00:09.1]} 48... d4 {[%clk 0:00:53.8]} 49. Bf1 {[%clk 0:00:09.3]} 49...
a5 {[%clk 0:00:45.3]} 50. a3 {[%clk 0:00:09.1]} 50... Kg3 {[%clk 0:00:38.4]} 51.
Kd3 {[%clk 0:00:08.1]} 51... Ba6+ {[%clk 0:00:37.7]} 52. Kxd4 {[%clk 0:00:08.4]}
52... Bb7 {[%clk 0:00:27.5]} 53. Ke3 {[%clk 0:00:08.8]} 53... a4 {[%clk
0:00:21.3]} 54. Bb5 {[%clk 0:00:07.7]} 54... Kg2 {[%clk 0:00:18.6]} 55. Be2
{[%clk 0:00:07.1]} 55... f2 {[%clk 0:00:18]} 56. Kd4 {[%clk 0:00:05.4]} 56...
f1=Q {[%clk 0:00:17.2]} 57. Bxf1+ {[%clk 0:00:05.6]} 57... Kxf1 {[%clk
0:00:17.9]} 58. Kc5 {[%clk 0:00:06.2]} 58... Ke2 {[%clk 0:00:17.9]} 59. Kb4
{[%clk 0:00:06]} 59... Bc6 {[%clk 0:00:16.5]} 60. Kc5 {[%clk 0:00:05]} 60... Bb7
{[%clk 0:00:16.7]} 61. Kb4 {[%clk 0:00:04.6]} 61... Bc6 {[%clk 0:00:16.1]} 62.
b7 {[%clk 0:00:03.3]} 62... Bxb7 {[%clk 0:00:16.1]} 63. Kxa4 {[%clk 0:00:04.2]}
63... Kd3 {[%clk 0:00:16.6]} 64. b4 {[%clk 0:00:04.4]} 64... Kc4 {[%clk
0:00:16.7]} 65. b5 {[%clk 0:00:04]} 65... Kc5 {[%clk 0:00:16.2]} 66. Ka5 {[%clk
0:00:04.6]} 66... Bc8 {[%clk 0:00:15.2]} 67. a4 {[%clk 0:00:04.5]} 67... Bd7
{[%clk 0:00:13.8]} 68. Ka6 {[%clk 0:00:03.3]} 68... Kd6 {[%clk 0:00:11.1]} 69.
b6 {[%clk 0:00:02.6]} 69... Kc6 {[%clk 0:00:10.7]} 70. b7 {[%clk 0:00:02.5]}
70... Kc7 {[%clk 0:00:11]} 71. Ka7 {[%clk 0:00:03.2]} 71... Bxa4 {[%clk
0:00:10.3]} 72. b8=Q+ {[%clk 0:00:04.1]} 1-0

[Event "Early-Titled-Tuesday-Blitz-February-20-2024"]
[Site "Chess.com"]
[Date "2024.02.20"]
[Round "3"]
[White "GrotBchess"]
[Black "Ishowmoves57"]
[Result "1/2-1/2"]
[WhiteElo "2373"]
[BlackElo "2145"]
[TimeControl "180+1"]
[EndTime "8:30:22 PST"]
[Termination "Game drawn - insufficient material"]

1. e4 {[%clk 0:03:00]} 1... c5 {[%clk 0:03:00]} 2. Nf3 {[%clk 0:02:58.8]} 2...
Nc6 {[%clk 0:03:00.3]} 3. Bb5 {[%clk 0:02:58.1]} 3... g6 {[%clk 0:02:58]} 4. O-O
{[%clk 0:02:57.7]} 4... Bg7 {[%clk 0:02:57.8]} 5. Re1 {[%clk 0:02:57.7]} 5... e5
{[%clk 0:02:57.8]} 6. c3 {[%clk 0:02:57.3]} 6... Nge7 {[%clk 0:02:58]} 7. d3
{[%clk 0:02:54.8]} 7... O-O {[%clk 0:02:57.8]} 8. Be3 {[%clk 0:02:53.7]} 8... b6
{[%clk 0:02:53.1]} 9. d4 {[%clk 0:02:49.9]} 9... cxd4 {[%clk 0:02:52.6]} 10.
cxd4 {[%clk 0:02:49.6]} 10... d6 {[%clk 0:02:51.6]} 11. d5 {[%clk 0:02:35.4]}
11... Nb8 {[%clk 0:02:50.7]} 12. Nbd2 {[%clk 0:02:30.9]} 12... f5 {[%clk
0:02:46.2]} 13. Bg5 {[%clk 0:02:30.7]} 13... h6 {[%clk 0:02:40.2]} 14. Bxe7
{[%clk 0:02:29.8]} 14... Qxe7 {[%clk 0:02:40.3]} 15. Rc1 {[%clk 0:02:29.6]}
15... a6 {[%clk 0:02:29.2]} 16. Bf1 {[%clk 0:02:23.3]} 16... f4 {[%clk
0:02:21.6]} 17. Nc4 {[%clk 0:02:22.6]} 17... Nd7 {[%clk 0:02:09.5]} 18. Qb3
{[%clk 0:02:17.2]} 18... b5 {[%clk 0:02:07.6]} 19. Na5 {[%clk 0:02:15.2]} 19...
Nc5 {[%clk 0:02:02.4]} 20. Qa3 {[%clk 0:02:02.1]} 20... Bd7 {[%clk 0:01:50.5]}
21. b4 {[%clk 0:01:59.1]} 21... Na4 {[%clk 0:01:49.5]} 22. Rc7 {[%clk
0:01:58.5]} 22... Rfc8 {[%clk 0:01:45.7]} 23. Rec1 {[%clk 0:01:58.4]} 23... Qe8
{[%clk 0:01:41.2]} 24. Nb7 {[%clk 0:01:38.8]} 24... Bf8 {[%clk 0:01:29]} 25. Nd2
{[%clk 0:01:29.1]} 25... Rxc7 {[%clk 0:01:27.2]} 26. Rxc7 {[%clk 0:01:28.3]}
26... Rc8 {[%clk 0:01:27.8]} 27. Qc1 {[%clk 0:01:15.4]} 27... Rxc7 {[%clk
0:01:28.2]} 28. Qxc7 {[%clk 0:01:15]} 28... Qc8 {[%clk 0:01:28.8]} 29. Qxc8
{[%clk 0:01:09.3]} 29... Bxc8 {[%clk 0:01:29.7]} 30. Na5 {[%clk 0:01:07.9]}
30... Kf7 {[%clk 0:01:24.8]} 31. f3 {[%clk 0:01:03.1]} 31... Be7 {[%clk
0:01:24.2]} 32. Bd3 {[%clk 0:01:02.3]} 32... Bd8 {[%clk 0:01:23.8]} 33. Nc6
{[%clk 0:00:56.6]} 33... Bb6+ {[%clk 0:01:19.4]} 34. Kf1 {[%clk 0:00:54.7]}
34... Bb7 {[%clk 0:01:15.7]} 35. Ke2 {[%clk 0:00:49.5]} 35... Ke8 {[%clk
0:01:14.6]} 36. a3 {[%clk 0:00:44.9]} 36... Kd7 {[%clk 0:01:14.3]} 37. Bc2
{[%clk 0:00:34]} 37... Bxc6 {[%clk 0:00:40.8]} 38. dxc6+ {[%clk 0:00:33]} 38...
Kxc6 {[%clk 0:00:41.7]} 39. Bxa4 {[%clk 0:00:33.1]} 39... bxa4 {[%clk
0:00:42.3]} 40. Nc4 {[%clk 0:00:29.3]} 40... Bc7 {[%clk 0:00:32.3]} 41. Kd3
{[%clk 0:00:25.1]} 41... Kb5 {[%clk 0:00:24.5]} 42. Nb2 {[%clk 0:00:17]} 42...
Bb6 {[%clk 0:00:22.3]} 43. Nc4 {[%clk 0:00:15]} 43... Bc7 {[%clk 0:00:22.4]} 44.
Nd2 {[%clk 0:00:15.1]} 44... a5 {[%clk 0:00:22.7]} 45. bxa5 {[%clk 0:00:13.4]}
45... Bxa5 {[%clk 0:00:23.2]} 46. Nc4 {[%clk 0:00:12.9]} 46... Bc7 {[%clk
0:00:23.6]} 47. Nd2 {[%clk 0:00:13]} 47... Bb6 {[%clk 0:00:23.9]} 48. Nc4 {[%clk
0:00:13]} 48... Bc5 {[%clk 0:00:24.4]} 49. Kc3 {[%clk 0:00:13.2]} 49... Bd4+
{[%clk 0:00:24.4]} 50. Kd3 {[%clk 0:00:12.7]} 50... Bc5 {[%clk 0:00:24.9]} 51.
h3 {[%clk 0:00:13]} 51... Kc6 {[%clk 0:00:25.4]} 52. Na5+ {[%clk 0:00:12.4]}
52... Kb5 {[%clk 0:00:25.2]} 53. Nc4 {[%clk 0:00:13]} 53... Kc6 {[%clk
0:00:22.5]} 54. Na5+ {[%clk 0:00:13]} 54... Kb6 {[%clk 0:00:21.5]} 55. Nc4+
{[%clk 0:00:13.3]} 55... Kb5 {[%clk 0:00:22.2]} 56. Kc3 {[%clk 0:00:13.5]} 56...
Bd4+ {[%clk 0:00:21]} 57. Kd3 {[%clk 0:00:13.4]} 57... Kc5 {[%clk 0:00:21.1]}
58. Na5 {[%clk 0:00:11.9]} 58... Bb2 {[%clk 0:00:18.5]} 59. Nc4 {[%clk
0:00:11.9]} 59... Bd4 {[%clk 0:00:17.9]} 60. Na5 {[%clk 0:00:11.4]} 60... d5
{[%clk 0:00:18.5]} 61. exd5 {[%clk 0:00:11.2]} 61... Kxd5 {[%clk 0:00:19]} 62.
Nc4 {[%clk 0:00:11.3]} 62... Bc5 {[%clk 0:00:18.3]} 63. Nb2 {[%clk 0:00:10.8]}
63... Bxa3 {[%clk 0:00:18.4]} 64. Nxa4 {[%clk 0:00:11.1]} 64... Bd6 {[%clk
0:00:18]} 65. Nc3+ {[%clk 0:00:11.2]} 65... Ke6 {[%clk 0:00:18.3]} 66. Ne4
{[%clk 0:00:11.9]} 66... Bb4 {[%clk 0:00:17.8]} 67. Kc4 {[%clk 0:00:12.2]} 67...
Be7 {[%clk 0:00:17.5]} 68. Kb5 {[%clk 0:00:12.5]} 68... Kf5 {[%clk 0:00:17.8]}
69. Kc6 {[%clk 0:00:12.5]} 69... g5 {[%clk 0:00:18.2]} 70. Kd5 {[%clk
0:00:12.8]} 70... h5 {[%clk 0:00:17.7]} 71. Nf2 {[%clk 0:00:11.2]} 71... Bb4
{[%clk 0:00:16.6]} 72. Nd3 {[%clk 0:00:10.7]} 72... Bc3 {[%clk 0:00:16.1]} 73.
Nf2 {[%clk 0:00:10.7]} 73... Bd4 {[%clk 0:00:16.1]} 74. Ne4 {[%clk 0:00:10.4]}
74... g4 {[%clk 0:00:16.3]} 75. hxg4+ {[%clk 0:00:10.2]} 75... hxg4 {[%clk
0:00:16.6]} 76. Nd6+ {[%clk 0:00:10.3]} 76... Kg5 {[%clk 0:00:16.2]} 77. Nf7+
{[%clk 0:00:10]} 77... Kh4 {[%clk 0:00:16.1]} 78. Nxe5 {[%clk 0:00:09.9]} 78...
gxf3 {[%clk 0:00:10.7]} 79. Nxf3+ {[%clk 0:00:09.3]} 79... Kg3 {[%clk
0:00:10.6]} 80. Kxd4 {[%clk 0:00:09.4]} 80... Kxg2 {[%clk 0:00:10.7]} 81. Ke4
{[%clk 0:00:09.9]} 81... Kg3 {[%clk 0:00:11.1]} 82. Ne5 {[%clk 0:00:09.7]} 82...
f3 {[%clk 0:00:11.7]} 83. Nxf3 {[%clk 0:00:09.7]} 1/2-1/2

[Event "Early-Titled-Tuesday-Blitz-February-20-2024"]
[Site "Chess.com"]
[Date "2024.02.20"]
[Round "3"]
[White "IamSchrodingersCat"]
[Black "Preobrazhenska_D2011"]
[Result "1-0"]
[WhiteElo "2611"]
[BlackElo "2381"]
[TimeControl "180+1"]
[EndTime "8:30:31 PST"]
[Termination "IamSchrodingersCat won by resignation"]

1. e4 {[%clk 0:03:00.9]} 1... c5 {[%clk 0:02:58.8]} 2. Nf3 {[%clk 0:03:00.7]}
2... d6 {[%clk 0:02:55.5]} 3. d4 {[%clk 0:03:00.7]} 3... cxd4 {[%clk 0:02:49.2]}
4. Nxd4 {[%clk 0:03:01.6]} 4... Nf6 {[%clk 0:02:49.6]} 5. Nc3 {[%clk 0:03:01.5]}
5... a6 {[%clk 0:02:39.1]} 6. Be2 {[%clk 0:03:00.3]} 6... e5 {[%clk 0:02:37.4]}
7. Nb3 {[%clk 0:02:59.6]} 7... Be7 {[%clk 0:02:37.1]} 8. g4 {[%clk 0:02:58.9]}
8... h6 {[%clk 0:02:30.4]} 9. Be3 {[%clk 0:02:57.5]} 9... Be6 {[%clk 0:02:28.6]}
10. Bf3 {[%clk 0:02:57.1]} 10... b5 {[%clk 0:02:07]} 11. Qe2 {[%clk 0:02:39.1]}
11... Qc7 {[%clk 0:01:47.7]} 12. O-O-O {[%clk 0:02:38.4]} 12... b4 {[%clk
0:01:23.4]} 13. Nd5 {[%clk 0:02:28.4]} 13... Nxd5 {[%clk 0:01:17.2]} 14. exd5
{[%clk 0:02:29.3]} 14... Bc8 {[%clk 0:01:15.6]} 15. h4 {[%clk 0:02:09.7]} 15...
a5 {[%clk 0:00:57.7]} 16. Kb1 {[%clk 0:01:37.7]} 16... a4 {[%clk 0:00:50.5]} 17.
Nc1 {[%clk 0:01:37.3]} 17... Ba6 {[%clk 0:00:46.7]} 18. Qd2 {[%clk 0:01:36.3]}
18... Qa5 {[%clk 0:00:34]} 19. Nd3 {[%clk 0:01:03.1]} 19... Nd7 {[%clk
0:00:26.5]} 20. Nxb4 {[%clk 0:00:56.9]} 20... Qc7 {[%clk 0:00:22.2]} 21. Nc6
{[%clk 0:00:55.3]} 21... Bb5 {[%clk 0:00:14.7]} 22. h5 {[%clk 0:00:26.2]} 22...
a3 {[%clk 0:00:12.6]} 23. b3 {[%clk 0:00:24.2]} 23... Bxc6 {[%clk 0:00:09.5]}
24. dxc6 {[%clk 0:00:25.1]} 24... Nf6 {[%clk 0:00:09.8]} 25. g5 {[%clk
0:00:19.4]} 25... hxg5 {[%clk 0:00:09.8]} 26. Bxg5 {[%clk 0:00:20.3]} 26... Ra5
{[%clk 0:00:05.6]} 27. h6 {[%clk 0:00:16.8]} 27... gxh6 {[%clk 0:00:05.5]} 28.
Rxh6 {[%clk 0:00:17.7]} 28... Rxh6 {[%clk 0:00:05.6]} 29. Bxh6 {[%clk
0:00:18.6]} 29... Rc5 {[%clk 0:00:05.9]} 30. Be3 {[%clk 0:00:17.6]} 30... Rb5
{[%clk 0:00:04.5]} 31. Rh1 {[%clk 0:00:15.2]} 31... Bf8 {[%clk 0:00:04.4]} 32.
Rh8 {[%clk 0:00:14.4]} 32... Ke7 {[%clk 0:00:04.9]} 33. Bg5 {[%clk 0:00:13.8]}
33... Bg7 {[%clk 0:00:05.3]} 34. Rh7 {[%clk 0:00:12.3]} 34... Kf8 {[%clk
0:00:04.2]} 35. Rxg7 {[%clk 0:00:09.4]} 35... Kxg7 {[%clk 0:00:05.1]} 36. Bh6+
{[%clk 0:00:09.8]} 36... Kh7 {[%clk 0:00:03.9]} 37. Qg5 {[%clk 0:00:10.1]} 37...
Ne8 {[%clk 0:00:03.2]} 38. Be4+ {[%clk 0:00:10.5]} 38... Kh8 {[%clk 0:00:03.5]}
39. Bf8 {[%clk 0:00:08.2]} 39... f5 {[%clk 0:00:03.3]} 40. Bxf5 {[%clk
0:00:04.5]} 40... Qf7 {[%clk 0:00:03.8]} 41. Bh6 {[%clk 0:00:03.1]} 41... Nf6
{[%clk 0:00:03.6]} 42. Bd3 {[%clk 0:00:03.1]} 42... Rc5 {[%clk 0:00:04]} 43. c7
{[%clk 0:00:03]} 43... Rxc7 {[%clk 0:00:04.3]} 44. Qf5 {[%clk 0:00:03.7]} 44...
e4 {[%clk 0:00:04.2]} 45. Bxe4 {[%clk 0:00:03.5]} 45... Re7 {[%clk 0:00:04.9]}
46. Bd3 {[%clk 0:00:02.9]} 46... Re1+ {[%clk 0:00:05.2]} 47. Bc1 {[%clk
0:00:03]} 47... Re5 {[%clk 0:00:04.4]} 48. Qf3 {[%clk 0:00:02.6]} 48... Kg7
{[%clk 0:00:03.9]} 49. Qg3+ {[%clk 0:00:01.9]} 49... Kf8 {[%clk 0:00:04]} 50. f4
{[%clk 0:00:02.5]} 50... Re6 {[%clk 0:00:03.5]} 51. Qf3 {[%clk 0:00:03.1]} 51...
d5 {[%clk 0:00:03.8]} 52. Qf2 {[%clk 0:00:02.9]} 52... Ke7 {[%clk 0:00:04.4]}
53. Qc5+ {[%clk 0:00:03.4]} 53... Ke8 {[%clk 0:00:04.4]} 54. Qxa3 {[%clk
0:00:04.3]} 54... Rc6 {[%clk 0:00:04.2]} 55. Bb5 {[%clk 0:00:04.2]} 55... Qd7
{[%clk 0:00:04.9]} 56. Qa4 {[%clk 0:00:03.3]} 56... Ke7 {[%clk 0:00:03.7]} 57.
Bxc6 {[%clk 0:00:03.7]} 57... Qf5 {[%clk 0:00:03.7]} 58. Ba3+ {[%clk 0:00:04]}
58... Kf7 {[%clk 0:00:04]} 59. Bb5 {[%clk 0:00:04.8]} 59... Qh3 {[%clk
0:00:03.3]} 60. Bd3 {[%clk 0:00:04.5]} 60... Qf3 {[%clk 0:00:03.1]} 61. Bc1
{[%clk 0:00:04.2]} 61... Qd1 {[%clk 0:00:02.5]} 62. Qa7+ {[%clk 0:00:04.3]}
62... Ke6 {[%clk 0:00:03.1]} 63. Qd4 {[%clk 0:00:05.1]} 63... Ke7 {[%clk
0:00:02.6]} 64. Qe5+ {[%clk 0:00:05.1]} 64... Kf7 {[%clk 0:00:02.4]} 65. f5
{[%clk 0:00:05.8]} 65... Qg1 {[%clk 0:00:01.9]} 66. Qe6+ {[%clk 0:00:05.7]}
66... Kg7 {[%clk 0:00:02.5]} 67. a4 {[%clk 0:00:05.8]} 67... Qd4 {[%clk
0:00:02.3]} 68. Qe7+ {[%clk 0:00:05.7]} 68... Kg8 {[%clk 0:00:02.7]} 69. Qe3
{[%clk 0:00:06.4]} 69... Qb4 {[%clk 0:00:02.8]} 70. Bb2 {[%clk 0:00:06.2]} 70...
Nd7 {[%clk 0:00:02.6]} 71. Qg5+ {[%clk 0:00:06.1]} 71... Kf7 {[%clk 0:00:02.8]}
72. Qg7+ {[%clk 0:00:06.5]} 72... Ke8 {[%clk 0:00:03.1]} 73. Qg8+ {[%clk
0:00:06.4]} 73... Ke7 {[%clk 0:00:03.4]} 74. Qe6+ {[%clk 0:00:06.8]} 74... Kd8
{[%clk 0:00:03.8]} 75. f6 {[%clk 0:00:07.2]} 75... Qe1+ {[%clk 0:00:03.4]} 76.
Qxe1 {[%clk 0:00:06.3]} 76... Kc7 {[%clk 0:00:02.2]} 77. f7 {[%clk 0:00:05.3]}
1-0